fUST/lending_fUST_20240207
["ID","MTS","AMOUNT","RATE_DAILY","PERIOD"]
[313402135,1707312641684,-728.01,0.00027671,3]
[313402137,1707312641693,-500.0,0.00027671,3]
[313402139,1707312641702,-323.76001299,0.00027934,2]
[313402141,1707312641712,-156.46155181,0.00027934,2]
[313402143,1707312641720,-731.7134433,0.00027934,2]
[313402145,1707312641729,-150.0,0.00027944,2]
[313402147,1707312641738,-500.0,0.00027945,2]
[313402149,1707312641747,-762.46,0.00027945,3]
[313402151,1707312641756,-1000.0,0.00027945,2]
[313402153,1707312641766,-1941.41,0.00027945,3]
[313402155,1707312641775,-752.29,0.00027945,3]
[313402156,1707312641784,-869.78,0.00027945,3]
[313402157,1707312641794,-2018.58,0.00027945,3]
[313402158,1707312641803,-500.0,0.00027945,3]
[313402159,1707312641812,-500.0,0.00027945,3]
[313402160,1707312641822,-1422.92,0.00027945,3]
[313402161,1707312641831,-1011.57,0.00027945,3]
[313402162,1707312641840,-893.19,0.00027945,3]
[313402163,1707312641850,-500.0,0.00027945,3]
[313402164,1707312641859,-333.38152573,0.00027945,3]
[313402165,1707312641868,-500.0,0.00027945,3]
[313402166,1707312641878,-16202.7,0.00027945,3]
[313402167,1707312641888,-390.0,0.00027945,3]
[313402168,1707312641897,-500.0,0.00027945,3]
[313402170,1707312641907,-500.0,0.00027945,3]
[313402172,1707312641916,-2534.81,0.00027945,3]
[313402174,1707312641925,-761.13,0.00027945,3]
[313402176,1707312641935,-2622.43,0.00027945,3]
[313402178,1707312641944,-2911.48,0.00027945,3]
[313402180,1707312641954,-1686.99,0.00027945,3]
[313402182,1707312641964,-1239.59,0.00027945,3]
[313402184,1707312641973,-1076.77,0.00027945,3]
[313402186,1707312641983,-682.65,0.00027945,3]
[313402188,1707312641993,-2361.9,0.00027945,3]
[313402190,1707312642002,-1292.16,0.00027945,3]
[313402192,1707312642011,-500.0,0.00027945,2]
[313402194,1707312642020,-5610.81,0.00027945,3]
[313402196,1707312642029,-1021.42,0.00027945,3]
[313402198,1707312642038,-1313.77,0.00027945,3]
[313402200,1707312642047,-1719.09,0.00027945,3]
[313402202,1707312642056,-1205.93,0.00027945,3]
[313402204,1707312642065,-814.21,0.00027945,3]
[313402206,1707312642074,-5801.26,0.00027945,3]
[313402208,1707312642083,-500.0,0.00027945,3]
[313402210,1707312642093,-8896.84,0.00027945,3]
[313402212,1707312642102,-5396.87,0.00027945,3]
[313402214,1707312642111,-2721.76,0.00027945,3]
[313402216,1707312642120,-1998.18,0.00027945,3]
[313402218,1707312642131,-500.0,0.00027945,2]
[313402220,1707312642140,-728.01,0.00027945,3]
[313402222,1707312642149,-500.0,0.00027945,3]
[313402230,1707312642234,-15632.71442258,0.00028,20]
[313402231,1707312642244,-155.01860223,0.00028,2]
[313402232,1707312642253,-3394.61567587,0.00028,2]
[313402233,1707312642262,-61734.24040606,0.00028,2]
[313402234,1707312642272,-2010.0,0.00028,2]
[313402235,1707312642281,-460.28523334,0.00028,2]
[313402236,1707312642290,-5381.0,0.00028,4]
[313402237,1707312642299,-16378.64730575,0.00028119,2]
[313402246,1707312642394,-10490.12668548,0.00028119,2]
[313402248,1707312642402,-4964.21175581,0.000282,3]
[313402286,1707312643653,-7936.88909477,0.00027397,3]
[313402301,1707312646703,-155.05424562,0.00027396,2]
[313402302,1707312646713,-6240.48090523,0.00027397,3]
[313402304,1707312646723,-2217.96,0.00027397,3]
[313402306,1707312646732,-680.27363527,0.00027669,2]
[313402308,1707312646741,-3134.79756825,0.00027671,3]
[313402322,1707313097273,521.269485,0.00027397,120]
[313402323,1707313403540,501.69723589,0.00027397,30]
[313402324,1707313593316,390.952113,0.00027397,120]
[313402325,1707313599097,-560.73538,0.00024981,5]
[313402525,1707313837952,-154.95351395,0.00024979,4]
[313402528,1707313837964,-2717.98041473,0.0002498,5]
[313402530,1707313837973,-300.0,0.00024981,2]
[313402532,1707313837982,-1358.70066073,0.00024981,5]
[313402535,1707313837991,-410.17484941,0.00025089,2]
[313402538,1707313838000,-12094.34342912,0.00025189,2]
[313402541,1707313838009,-2909.30334695,0.00025189,2]
[313402544,1707313838019,-54.54378511,0.000259,2]
[313402546,1707313838031,-162.13986879,0.000259,2]
[313402548,1707313838039,-138.02013131,0.00026986,2]
[313402708,1707313841091,-17.74676809,0.00026986,2]
[313402709,1707313841101,-521.51004544,0.00027121,2]
[313402710,1707313841113,-186.86081118,0.00027121,2]
[313402711,1707313841122,-3214.0402306,0.00027314,2]
[313402712,1707313841134,-1785.9597694,0.00027314,2]
[313402713,1707313841144,-3290.38,0.00027386,3]
[313402714,1707313841153,-5634.32,0.00027386,3]
[313402715,1707313841162,-155.30092263,0.00027395,2]
[313402716,1707313841172,-1640.19491676,0.00027395,2]
[313402717,1707313841184,-1091.51054594,0.00027395,2]
[313402718,1707313841194,-2449.7477739,0.00027396,2]
[313402719,1707313841206,-30984.6282865,0.00027396,2]
[313402720,1707313841221,-15182.78267594,0.00027396,2]
[313402721,1707313841230,-1766.25,0.00027397,3]
[313402722,1707313841239,-203.08388927,0.00027397,3]
[313402758,1707313842819,-560.73538,0.00027387,3]
[313402759,1707313842875,-4134.53462,0.00027387,3]
[313402760,1707313842885,-296.91611073,0.00027397,3]
[313402761,1707313842894,-500.0,0.00027397,3]
[313402762,1707313842903,-500.0,0.00027397,3]
[313402763,1707313842912,-1719.57,0.00027397,3]
[313402764,1707313842920,-679.08,0.00027397,3]
[313402765,1707313842929,-258.87545038,0.00027397,3]
[313402808,1707314376197,293.214084,0.00027397,120]
[313402873,1707314876872,219.910563,0.00027397,120]
[313402940,1707315031990,-2242.9765875,0.00023902,5]
[313402944,1707315032044,-475.00382723,0.00023902,5]
[313402945,1707315032053,-154.95351395,0.00023902,4]
[313402946,1707315032063,-500.0,0.00023903,2]
[313402947,1707315032071,-272.593128,0.00023904,2]
[313402948,1707315032080,-545.92353987,0.00024637,2]
[313402979,1707315038261,-17490.43501925,0.00024637,2]
[313403258,1707315041338,-1927.4,0.00024637,2]
[313403260,1707315041350,-4936.24144088,0.00024637,2]
[313403262,1707315041360,-2266.54281401,0.00025,2]
[313403264,1707315041371,-3465.98108791,0.00025,2]
[313403268,1707315041392,-5776.21160456,0.00025,2]
[313403269,1707315041401,-1924.84186198,0.00025212,2]
[313403271,1707315041411,-540.16844594,0.00025221,2]
[313403273,1707315041421,-213.63751115,0.00025296,2]
[313403275,1707315041431,-499.42473756,0.00025458,5]
[313403277,1707315041441,-500.0,0.00026,2]
[313403279,1707315041450,-169.77794,0.00026121,2]
[313403293,1707315041570,-750.0,0.000265,2]
[313403295,1707315041586,-4433.77,0.0002679,3]
[313403297,1707315041595,-3694.81,0.0002679,3]
[313403299,1707315041606,-155.61951759,0.00026798,2]
[313403301,1707315041616,-5294.26827455,0.00026799,2]
[313403303,1707315041625,-6219.25991917,0.000268,2]
[313403360,1707315043015,-3079.0,0.0002679,3]
[313403361,1707315043024,-6214.08859412,0.000268,2]
[313403362,1707315043036,-4938.14606308,0.000268,2]
[313403383,1707315511507,164.932922,0.00027397,120]
[313403384,1707315943126,-154.93802479,0.00024644,4]
[313403385,1707315943148,-2717.98041473,0.00024645,5]
[313403386,1707315943170,-1201.66555398,0.00024645,2]
[313403387,1707315943192,-691.2314495,0.00024646,2]
[313403388,1707316020808,164.932922,0.00027397,120]
[313403389,1707316171100,-154.93802479,0.00024638,4]
[313403390,1707316171121,-1859.71951506,0.00024638,2]
[313403391,1707316171142,-3980.62518534,0.00024639,2]
[313403392,1707316171162,-1941.60636958,0.00024639,2]
[313403494,1707316238304,-300.0,0.00024639,2]
[313403495,1707316238315,-1043.74162725,0.00024639,5]
[313403496,1707316238362,-314.95903348,0.00024639,5]
[313403497,1707316238372,-166.04096652,0.00024639,2]
[313403502,1707316241356,-1679.20230331,0.00024639,2]
[313403503,1707316241368,-245.35183364,0.00024639,2]
[313403504,1707316241377,-1652.44337949,0.00024639,2]
[313403505,1707316241386,-154.93802479,0.00024656,4]
[313403506,1707316241395,-150.0,0.000247,2]
[313403507,1707316241404,-4196.85056908,0.00025222,2]
[313403508,1707316241415,-1385.40792197,0.00025222,2]
[313403509,1707316241424,-1207.55039232,0.00025232,2]
[313403510,1707316241433,-624.63865494,0.00026709,2]
[313403511,1707316241442,-500.0,0.00026799,2]
[313403512,1707316241451,-16136.87700676,0.000268,2]
[313403513,1707316241472,-350.85415486,0.000268,2]
[313403538,1707316243264,-2693.30789332,0.000268,2]
[313403540,1707316243318,-1390.47605833,0.000268,2]
[313403541,1707316243333,-518.59412759,0.000268,2]
[313403542,1707316243345,-285.84266436,0.000268,2]
[313403543,1707316243356,-500.0,0.00027,2]
[313403544,1707316243365,-911.30733562,0.00027,3]
[313403568,1707316246229,-36.98884484,0.00027,3]
[313403569,1707316246239,-306.0,0.00027,2]
[313403570,1707316246247,-129.56602072,0.00027,2]
[313403571,1707316612238,164.932922,0.00027397,120]
[313403572,1707317142101,-323.9970875,0.00023077,2]
[313403573,1707317142123,-154.93802479,0.00023078,4]
[313403574,1707317142144,-175.69575442,0.00023079,2]
[313403575,1707317142164,-644.82743315,0.0002308,5]
[313403576,1707317154967,164.932922,0.00027397,120]
[313403577,1707317355096,-154.93802479,0.00023072,4]
[313403578,1707317355115,-405.79735521,0.00023073,2]
[313403630,1707317434502,-154.93802479,0.0002307,4]
[313403632,1707317434511,-2717.98041473,0.00023071,5]
[313403645,1707317434520,-454.26835317,0.00023072,2]
[313403648,1707317434635,-1181.15271951,0.00023073,2]
[313403650,1707317434645,-1358.70066073,0.00023073,5]
[313403652,1707317434655,-1831.43958099,0.00023073,2]
[313403654,1707317434667,-3253.25336922,0.00023073,2]
[313403656,1707317434676,-1652.44337949,0.00023073,2]
[313403658,1707317434686,-697.8620211,0.00023085,2]
[313403660,1707317434696,-230.576275,0.00023222,2]
[313403662,1707317434705,-2795.8496359,0.00023356,2]
[313403664,1707317434714,-2644.56613592,0.00023447,2]
[313403699,1707317438509,-1793.23800268,0.00023447,2]
[313403700,1707317438519,-1417.63583502,0.00023447,2]
[313403701,1707317438570,-897.78833998,0.00023447,2]
[313403702,1707317438581,-398.7102711,0.00023676,2]
[313403703,1707317438592,-300.0,0.00024639,2]
[313403704,1707317438602,-495.0668319,0.00024639,2]
[313403705,1707317438615,-213.85399769,0.00024639,2]
[313403706,1707317438626,-150.0,0.000247,2]
[313403707,1707317438635,-1445.69112552,0.00025217,2]
[313403720,1707317441663,-261.1484091,0.00025217,2]
[313403721,1707317441676,-359.50100004,0.00025217,2]
[313403722,1707317441689,-4233.06640004,0.00025217,2]
[313403723,1707317441698,-335.52992191,0.00025217,2]
[313403724,1707317441708,-619.95142509,0.00025218,2]
[313403725,1707317441723,-4380.04857491,0.00025218,2]
[313403726,1707317441733,-4229.45592162,0.00025218,2]
[313403727,1707317441741,-1007.2339689,0.00025227,2]
[313403728,1707317441751,-200.0,0.00025791,7]
[313403729,1707317441760,-365.26882899,0.00025896,2]
[313403730,1707317441769,-199.9099361,0.00026178,2]
[313403731,1707317441779,-199.9099361,0.00026178,2]
[313403732,1707317441789,-199.9099361,0.00026178,2]
[313403733,1707317441798,-199.9099361,0.00026178,2]
[313403734,1707317441807,-198.0826057,0.00026178,2]
[313403735,1707317441817,-8672.06333086,0.0002658,4]
[313403736,1707317441826,-150.958,0.00026788,2]
[313403737,1707317441835,-1529.25,0.0002699,3]
[313403738,1707317441844,-2916.19,0.0002699,3]
[313403739,1707317441854,-2430.15,0.0002699,3]
[313403740,1707317441863,-299.34580309,0.00026998,2]
[313403741,1707317441872,-176.79655507,0.00026998,2]
[313403742,1707317441882,-155.0186023,0.00026999,2]
[313403743,1707317441892,-768.04812183,0.00027,2]
[313403744,1707317441902,-32613.50278723,0.00027,7]
[313403745,1707317441916,-2257.95370826,0.00027,7]
[313403746,1707317441926,-151.55215445,0.00027097,2]
[313403747,1707317441935,-1247.21560959,0.00027187,3]
[313403748,1707317441947,-777.91439041,0.00027187,3]
[313403749,1707317441957,-316.30609695,0.00027197,2]
[313403770,1707317444677,-753.77729862,0.00027197,2]
[313403800,1707318351105,-2717.98041473,0.00021321,5]
[313403801,1707318351246,-154.93802479,0.00021321,4]
[313403802,1707318351267,-154.93802479,0.00021322,2]
[313403803,1707318351287,-690.01629452,0.00021322,2]
[313403804,1707318351307,-154.93802479,0.00021323,2]
[313403805,1707318351326,-1586.95007472,0.00021325,2]
[313403806,1707318351346,-5000.0,0.00021338,5]
[313403807,1707318351366,-151.55215444,0.00021941,2]
[313403808,1707318351385,-741.39467799,0.00021999,2]
[313403809,1707318351405,-35642.4404407,0.00022,2]
[313403810,1707318351426,-3116.91,0.00022031,3]
[313403811,1707318351446,-5337.27,0.00022031,3]
[313403812,1707318351466,-5833.67,0.00022041,2]
[313403813,1707318351486,-651.0305411,0.00022041,2]
[313403814,1707318351506,-4447.73,0.00023061,3]
[313403815,1707318351525,-18123.38074838,0.00023071,2]
[313403818,1707318425096,-154.93802479,0.00020762,4]
[313403819,1707318425117,-1586.95007472,0.00022375,2]
[313403820,1707318425136,-14800.93762049,0.00022376,2]
[313403821,1707318427084,-2717.98041473,0.00022375,5]
[313403822,1707318427105,-5117.19517259,0.00022376,2]
[313403823,1707318427124,-5000.0,0.00022377,5]
[313403824,1707318427148,-155.48111,0.0002306,2]
[313403825,1707318427168,-692.78614342,0.00023069,2]
[313403826,1707318427188,-741.39467799,0.00023069,2]
[313403827,1707318427208,-155.5479534,0.0002307,2]
[313403828,1707318427231,-65770.59306226,0.00023071,2]
[313403829,1707318427255,-154.93802479,0.00023071,2]
[313403830,1707318427276,-1358.70066073,0.00023071,5]
[313403831,1707318427297,-1834.89051035,0.00023073,2]
[313403832,1707318427319,-3263.86770893,0.00023073,2]
[313403833,1707318427339,-1650.17819561,0.00023073,2]
[313403834,1707318427361,-200.0,0.0002347,7]
[313403835,1707318427381,-150.0,0.000249,2]
[313403836,1707318427405,-2613.67394236,0.00025223,2]
[313403837,1707318427428,-3325.0,0.00025223,2]
[313403838,1707318427451,-2054.86398041,0.00025223,2]
[313403839,1707318427471,-151.0,0.00025223,2]
[313403840,1707318427491,-151.0,0.00025223,2]
[313403841,1707318427513,-280.0,0.00025817,7]
[313403842,1707318427535,-173.93753762,0.00025896,2]
[313403843,1707318427651,-620.23193274,0.00026643,2]
[313403844,1707318427675,-155.00465014,0.00027,2]
[313403845,1707318427695,-1331.32994501,0.00027197,2]
[313403846,1707318427715,-154.93802479,0.00027197,2]
[313403847,1707318427736,-10316.20148278,0.00027197,2]
[313403848,1707318427757,-641.66112806,0.00027197,2]
[313403849,1707318427777,-151.0,0.00027197,2]
[313403850,1707318427797,-151.0,0.00027197,2]
[313403851,1707318427820,-5000.0,0.00027346,2]
[313403852,1707318427840,-1315.41366944,0.00027393,2]
[313403853,1707318427859,-155.66315952,0.00027393,2]
[313403854,1707318427880,-500.0,0.00027393,2]
[313403855,1707318427904,-485.07973008,0.00027393,2]
[313403856,1707318427923,-195.37402942,0.00027393,2]
[313403857,1707318427945,-500.0,0.00027393,2]
[313403858,1707318427965,-548.51961474,0.00027393,2]
[313403859,1707318427985,-500.0,0.00027393,2]
[313403860,1707318428006,-500.0,0.00027393,2]
[313403861,1707318428028,-500.0,0.00027393,2]
[313403862,1707318428047,-500.0,0.00027393,2]
[313403863,1707318428067,-500.0,0.00027393,2]
[313403864,1707318428087,-500.0,0.00027393,2]
[313403865,1707318428107,-500.0,0.00027393,2]
[313403866,1707318428127,-500.0,0.00027393,2]
[313403867,1707318428148,-512.20687619,0.00027393,2]
[313403868,1707318428168,-500.0,0.00027393,2]
[313403869,1707318428189,-303.70863948,0.00027393,2]
[313403870,1707318428209,-500.0,0.00027393,2]
[313403871,1707318428229,-500.0,0.00027393,2]
[313403872,1707318428252,-500.0,0.00027393,2]
[313403873,1707318428271,-243.68867239,0.00027393,2]
[313403874,1707318428291,-500.0,0.00027393,2]
[313403875,1707318428311,-4019.62932889,0.00027394,2]
[313403876,1707318428330,-155.92685604,0.00027394,2]
[313403877,1707318428351,-151.0,0.00027394,2]
[313403878,1707318428370,-326.28860186,0.00027395,2]
[313403879,1707318428390,-1743.33360655,0.00027395,2]
[313403880,1707318428410,-1858.48878717,0.00027395,2]
[313403881,1707318428430,-397.8308514,0.00027395,2]
[313403882,1707318428450,-332.82390398,0.00027395,2]
[313403883,1707318428470,-1200.72272906,0.00027395,2]
[313403884,1707318428489,-1591.33772477,0.00027395,2]
[313403885,1707318428511,-647.82981975,0.00027395,2]
[313403886,1707318428531,-500.0,0.00027395,2]
[313403887,1707318428551,-155.0294556,0.00027395,2]
[313403888,1707318428587,-611.43798565,0.00027395,2]
[313403889,1707318428609,-272.87948714,0.00027395,2]
[313403890,1707318428640,-6295.19315522,0.00027395,2]
[313403891,1707318428674,-335.26553475,0.00027395,2]
[313403892,1707318428706,-18947.68100356,0.00027395,2]
[313403893,1707318428735,-245.0,0.00027395,2]
[313403894,1707318428761,-151.0,0.00027395,2]
[313403895,1707318428789,-151.0,0.00027395,2]
[313403896,1707318428817,-230.419392,0.00027395,2]
[313403897,1707318428847,-5218.09776125,0.00027396,2]
[313403898,1707318428874,-234.9472934,0.00027397,2]
[313403899,1707318428897,-155.01860223,0.00027397,2]
[313403900,1707318428922,-1840.5,0.00027397,3]
[313403901,1707318428950,-500.0,0.00027397,3]
[313403902,1707318428975,-500.0,0.00027397,3]
[313403903,1707318429002,-500.0,0.00027397,3]
[313403904,1707318429025,-459.88895938,0.00027397,3]
[313403905,1707318429048,-528.05649788,0.00027397,3]
[313403906,1707318429076,-500.0,0.00027397,3]
[313403907,1707318429102,-500.0,0.00027397,3]
[313403908,1707318429127,-387.37064288,0.00027397,3]
[313403909,1707318429152,-500.0,0.00027397,3]
[313403910,1707318429177,-346.75607076,0.00027397,3]
[313403911,1707318429204,-500.0,0.00027397,3]
[313403912,1707318429230,-500.0,0.00027397,3]
[313403913,1707318429256,-2244.85,0.00027397,3]
[313403914,1707318429279,-500.0,0.00027397,2]
[313403915,1707318429301,-661.93,0.00027397,3]
[313403916,1707318429325,-454.810239,0.00027397,3]
[313403917,1707318429349,-500.0,0.00027397,2]
[313403918,1707318429373,-574.18868617,0.00027397,3]
[313403919,1707318429400,-295.11062251,0.00027397,3]
[313403920,1707318429423,-500.0,0.00027397,2]
[313403921,1707318429445,-305.4224279,0.00027397,3]
[313403922,1707318429468,-1793.75,0.00027397,3]
[313403923,1707318429492,-713.29,0.00027397,3]
[313403924,1707318429518,-316.44854787,0.00027397,3]
[313403925,1707318429542,-505.08531389,0.00027397,3]
[313403926,1707318429565,-3991.37,0.00027397,3]
[313403927,1707318429589,-1290.07,0.00027397,3]
[313403928,1707318429613,-500.0,0.00027397,3]
[313403929,1707318429636,-500.0,0.00027397,3]
[313403930,1707318429659,-500.0,0.00027397,3]
[313403931,1707318429683,-500.0,0.00027397,3]
[313403932,1707318429706,-500.0,0.00027397,3]
[313403933,1707318429729,-500.0,0.00027397,3]
[313403934,1707318429754,-678.67,0.00027397,3]
[313403935,1707318429779,-688.49,0.00027397,3]
[313403936,1707318429803,-2316.7,0.00027397,3]
[313403937,1707318429826,-2781.93,0.00027397,3]
[313403938,1707318429851,-2514.71,0.00027397,3]
[313403939,1707318429976,-1559.45,0.00027397,3]
[313403940,1707318430018,-1894.24,0.00027397,3]
[313403941,1707318430039,-1025.79,0.00027397,3]
[313403942,1707318430061,-5405.11,0.00027397,3]
[313403943,1707318430084,-1147.14,0.00027397,3]
[313403944,1707318430105,-1213.97,0.00027397,3]
[313403945,1707318430126,-687.98,0.00027397,3]
[313403946,1707318430146,-945.0,0.00027397,3]
[313403947,1707318430167,-390.0,0.00027397,3]
[313403948,1707318430188,-754.1,0.00027397,3]
[313403949,1707318430208,-1316.22,0.00027397,3]
[313403950,1707318430228,-905.95,0.00027397,3]
[313403951,1707318430249,-1669.56,0.00027397,3]
[313403952,1707318430270,-500.0,0.00027397,2]
[313403953,1707318430289,-1000.0,0.00027397,2]
[313403954,1707318430309,-897.59,0.00027397,3]
[313403955,1707318430330,-5430.33,0.00027397,3]
[313403956,1707318430349,-1135.46,0.00027397,3]
[313403957,1707318430370,-588.19371844,0.00027397,3]
[313403958,1707318430390,-500.0,0.00027397,3]
[313403959,1707318430411,-5110.42,0.00027397,3]
[313403960,1707318430432,-500.0,0.00027397,3]
[313403961,1707318430452,-500.0,0.00027397,3]
[313403962,1707318430473,-414.94501911,0.00027397,3]
[313403963,1707318430498,-8065.86,0.00027397,3]
[313403964,1707318430521,-15065.32,0.00027397,3]
[313403965,1707318430541,-500.0,0.00027397,3]
[313403966,1707318430562,-40301.7767322,0.00027397,2]
[313403967,1707318430581,-511.89299392,0.000275,2]
[313403968,1707318430600,-500.0,0.000275,2]
[313403969,1707318430619,-600.0,0.000275,2]
[313403970,1707318430639,-17998.79446693,0.000275,2]
[313403971,1707318430659,-2000.0,0.000275,2]
[313403972,1707318430680,-2000.0,0.0002751,2]
[313403973,1707318430701,-2000.0,0.0002752,2]
[313403974,1707318430721,-2000.0,0.0002753,2]
[313403975,1707318430741,-2000.0,0.0002754,2]
[313403976,1707318430765,-2000.0,0.0002755,2]
[313403977,1707318430786,-1043.07756392,0.00027571,2]
[313403978,1707318430806,-1692.81746015,0.0002767,2]
[313403979,1707318430826,-1840.5,0.00027671,3]
[313403980,1707318430846,-500.0,0.00027671,3]
[313403981,1707318430869,-500.0,0.00027671,3]
[313403982,1707318430891,-500.0,0.00027671,3]
[313403983,1707318430912,-500.0,0.00027671,3]
[313403984,1707318430932,-500.0,0.00027671,3]
[313403985,1707318430953,-500.0,0.00027671,3]
[313403986,1707318430978,-2244.85,0.00027671,3]
[313403987,1707318430997,-500.0,0.00027671,2]
[313403988,1707318431020,-661.93,0.00027671,3]
[313403989,1707318431041,-500.0,0.00027671,2]
[313403990,1707318431063,-500.0,0.00027671,2]
[313403991,1707318431083,-1793.75,0.00027671,3]
[313403992,1707318431105,-713.29,0.00027671,3]
[313403993,1707318431126,-2593.93604945,0.00027671,3]
[313403994,1707318431165,-1397.43395055,0.00027671,3]
[313403995,1707318431185,-1290.07,0.00027671,3]
[313403996,1707318431207,-500.0,0.00027671,3]
[313403997,1707318431227,-387.8,0.00027671,3]
[313403998,1707318431249,-500.0,0.00027671,3]
[313403999,1707318431272,-500.0,0.00027671,3]
[313404000,1707318431293,-678.67,0.00027671,3]
[313404001,1707318431314,-688.49,0.00027671,3]
[313404002,1707318431335,-2316.7,0.00027671,3]
[313404003,1707318431356,-2781.93,0.00027671,3]
[313404004,1707318431376,-2514.71,0.00027671,3]
[313404005,1707318431396,-1559.45,0.00027671,3]
[313404006,1707318431417,-1894.24,0.00027671,3]
[313404007,1707318431437,-1025.79,0.00027671,3]
[313404008,1707318431458,-5405.11,0.00027671,3]
[313404009,1707318431478,-1147.14,0.00027671,3]
[313404010,1707318431498,-1213.97,0.00027671,3]
[313404011,1707318431520,-687.98,0.00027671,3]
[313404012,1707318431540,-945.0,0.00027671,3]
[313404013,1707318431561,-176.31954077,0.00027671,3]
[313404014,1707318431583,-754.1,0.00027671,3]
[313404015,1707318431608,-1316.22,0.00027671,3]
[313404016,1707318431628,-905.95,0.00027671,3]
[313404017,1707318431649,-1669.56,0.00027671,3]
[313404018,1707318431668,-1000.0,0.00027671,2]
[313404019,1707318431690,-897.59,0.00027671,3]
[313404020,1707318431711,-5430.33,0.00027671,3]
[313404021,1707318431732,-1135.46,0.00027671,3]
[313404022,1707318431753,-5110.42,0.00027671,3]
[313404023,1707318431774,-8065.86,0.00027671,3]
[313404024,1707318431795,-15065.32,0.00027671,3]
[313404025,1707318431815,-269.40595453,0.00027899,2]
[313404026,1707318431835,-177.73868672,0.00027899,2]
[313404027,1707318431855,-500.0,0.00027899,2]
[313404028,1707318431875,-253.75473683,0.00027899,2]
[313404029,1707318431896,-500.0,0.00027899,2]
[313404030,1707318431919,-500.0,0.00027899,2]
[313404031,1707318431939,-500.0,0.00027899,2]
[313404032,1707318431959,-500.0,0.00027899,2]
[313404033,1707318431979,-373.41567138,0.00027899,2]
[313404034,1707318432003,-466.41393744,0.00027899,2]
[313404035,1707318432023,-500.0,0.00027899,2]
[313404036,1707318432043,-500.0,0.00027899,2]
[313404037,1707318432064,-500.0,0.00027899,2]
[313404038,1707318432084,-324.55962319,0.00027899,2]
[313404039,1707318432104,-588.64727811,0.00027899,2]
[313404040,1707318432125,-500.0,0.00027899,2]
[313404041,1707318432144,-500.0,0.00027899,2]
[313404042,1707318432167,-500.0,0.00027899,2]
[313404043,1707318432187,-500.0,0.00027899,2]
[313404044,1707318432210,-500.0,0.00027899,2]
[313404045,1707318432231,-586.18785364,0.00027899,2]
[313404046,1707318432253,-500.0,0.00027899,2]
[313404047,1707318432274,-177.06957734,0.00027899,2]
[313404048,1707318432294,-500.0,0.00027899,2]
[313404049,1707318432314,-500.0,0.00027899,2]
[313404050,1707318432335,-500.0,0.00027899,2]
[313404051,1707318432355,-152405.06787276,0.000279,2]
[313404052,1707318432375,-395.0,0.000279,2]
[313404053,1707318432395,-1840.5,0.00027945,3]
[313404054,1707318432415,-228.09610258,0.00027945,3]
[313404055,1707318432537,-500.0,0.00027945,3]
[313404056,1707318432557,-500.0,0.00027945,3]
[313404057,1707318432577,-500.0,0.00027945,3]
[313404058,1707318432597,-500.0,0.00027945,3]
[313404059,1707318432616,-500.0,0.00027945,3]
[313404060,1707318432636,-2244.85,0.00027945,3]
[313404061,1707318432656,-500.0,0.00027945,2]
[313404062,1707318432676,-661.93,0.00027945,3]
[313404063,1707318432696,-514.27512306,0.00027945,2]
[313404064,1707318432715,-500.0,0.00027945,2]
[313404065,1707318432735,-1793.75,0.00027945,3]
[313404066,1707318432755,-713.29,0.00027945,3]
[313404067,1707318432775,-3991.37,0.00027945,3]
[313404068,1707318432795,-1290.07,0.00027945,3]
[313404069,1707318432817,-500.0,0.00027945,3]
[313404070,1707318432839,-500.0,0.00027945,3]
[313404071,1707318432861,-500.0,0.00027945,3]
[313404072,1707318432882,-678.67,0.00027945,3]
[313404073,1707318432907,-688.49,0.00027945,3]